bitfinex-derivatives/quotes_SOLF0:USTF0_20241002
["timestamp","ask_amount","ask_price","bid_price","bid_amount"]
[1727869532162,3.42,146.22,146.18,3.4209]
[1727869533259,3.42,146.22,146.16,1.349]
[1727869533457,19.84,146.22,146.15,0.12502]
[1727869534468,19.84,146.22,146.16,3.4213]
[1727869535667,16.42,146.22,146.15,0.12502]
[1727869535873,5.34,146.23,146.15,0.12502]
[1727869535874,3.4214,146.17,146.15,0.12502]
[1727869536175,5.34,146.18,146.15,0.12502]
[1727869536364,3.4214,146.16,146.15,0.12502]
[1727869537871,5.34,146.17,146.15,0.12502]
[1727869538270,3.4214,146.16,146.15,0.12502]
[1727869538873,8.7613,146.17,146.15,0.12502]
[1727869539760,3.4214,146.16,146.15,0.12502]
[1727869540267,19.8414,146.16,146.15,0.12502]
[1727869540576,19.8414,146.16,146.09,0.12502]
[1727869540577,16.42,146.16,146.09,0.12502]
[1727869540871,16.42,146.14,146.09,3.54782]
[1727869541068,3.4225,146.12,146.09,3.54782]
[1727869541271,3.4225,146.12,146.09,0.12502]
[1727869541272,21.76,146.12,146.09,0.12502]
[1727869541974,3.4228,146.1,146.09,0.12502]
[1727869544378,3.4236,146.07,146.04,3.4241]
[1727869544579,5.34,146.08,146.03,0.12502]
[1727869545782,3.4239,146.06,146.03,3.54942]
[1727869547073,5.34,146.08,146.03,3.54942]
[1727869547286,3.424,146.05,146.03,0.12502]
[1727869547678,3.4238,146.06,146.03,0.12502]
[1727869548079,3.4238,146.06,146.03,3.54942]
[1727869548676,3.4238,146.06,146.03,0.12502]
[1727869549084,3.4237,146.06,146.03,0.12502]
[1727869549382,5.34,146.07,146.03,0.12502]
[1727869549583,16.42,146.09,146.03,0.12502]
[1727869549883,5.34,146.08,146.03,0.12502]
[1727869550288,5.34,146.08,146.05,3.4238]
[1727869550682,5.34,146.08,146.03,0.12502]
[1727869550884,5.34,146.09,146.07,3.4233]
[1727869551181,5.34,146.09,146.03,16.54502]
[1727869551382,5.34,146.09,146.08,3.4232]
[1727869551786,16.42,146.13,146.04,2.7332]
[1727869551987,5.34,146.12,146.04,19.1532]
[1727869552186,16.42,146.13,146.04,19.1532]
[1727869552389,21.76,146.13,146.04,19.1532]
[1727869553394,3.4223,146.12,146.09,3.4229]
[1727869553789,21.76,146.13,146.04,19.1532]
[1727869554485,5.34,146.13,146.11,3.4225]
[1727869554793,5.34,146.13,146.06,21.76]
[1727869554992,5.46502,146.15,146.13,3.4219]
[1727869555382,5.46502,146.15,146.07,4.88068562]
[1727869555587,3.4219,146.14,146.11,3.4224]
[1727869559492,3.4225,146.12,146.09,3.4229]
[1727869559897,16.42,146.13,146.07,1.3777]
[1727869560090,3.4227,146.11,146.04,8.0732]
[1727869560396,16.42,146.13,146.04,9.3549]
[1727869560892,16.42,146.11,146.04,9.3549]
[1727869561098,25.12663704,146.11,146.04,9.3549]
[1727869561296,3.4229,146.1,146.07,3.4233]
[1727869561489,21.76,146.11,146.04,9.3549]
[1727869561694,25.26254867,146.11,146.04,9.3549]
[1727869561997,21.76,146.11,146.07,3.4235]
[1727869562696,25.17627731,146.11,146.04,1.3952]
[1727869562998,16.42,146.09,146.04,1.3952]
[1727869563497,16.42,146.09,146.05,3.4238]
[1727869563994,3.4236,146.07,146.04,4.8193]
[1727869564387,3.4236,146.07,146.04,1.3952]
[1727869564586,3.4234,146.08,146.05,3.4239]
[1727869564791,3.4234,146.08,146.04,1.3952]
[1727869565090,16.42,146.09,146.05,3.4238]
[1727869565394,16.42,146.09,146.03,0.12502]
[1727869565592,23.25897731,146.11,146.08,3.4232]
[1727869565792,5.34,146.1,146.03,0.12502]
[1727869566190,3.423,146.09,146.07,3.4234]
[1727869566392,5.34,146.1,146.07,3.4234]
[1727869566788,8.7629,146.1,146.07,3.4234]
[1727869567393,19.8422,146.13,146.1,3.4228]
[1727869567697,5.34,146.14,146.05,16.42]
[1727869567900,8.762,146.14,146.11,3.4223]
[1727869568594,5.34,146.14,146.11,3.4223]
[1727869568898,3.4221,146.13,146.11,3.4223]
[1727869569692,3.4224,146.12,146.09,3.4229]
[1727869569892,16.42,146.13,146.09,3.4229]
[1727869570701,3.4227,146.11,146.09,3.4229]
[1727869570999,16.42,146.13,146.09,3.4229]
[1727869571596,3.4225,146.12,146.09,3.4229]
[1727869571801,16.42,146.13,146.09,3.4229]
[1727869572003,3.4227,146.11,146.08,3.4231]
[1727869573296,3.4227,146.11,146.06,2.6756]
[1727869573598,5.34,146.14,146.06,2.6756]
[1727869574097,5.46502,146.15,146.09,16.42]
[1727869574297,0.12502,146.15,146.09,16.42]
[1727869574493,0.12502,146.15,146.1,1.3802]
[1727869575899,0.12502,146.15,146.14,3.4218]
[1727869576204,5.46502,146.21,146.12,21.76]
[1727869576406,8.88532,146.21,146.18,3.4207]
[1727869576600,3.54532,146.21,146.18,3.4207]
[1727869576800,16.54502,146.21,146.13,1.2769]
[1727869576998,16.54502,146.21,146.15,3.4215]
[1727869577396,3.421,146.18,146.15,3.4215]
[1727869578305,16.54502,146.21,146.13,1.2769]
[1727869579001,3.4208,146.19,146.15,3.4214]
[1727869579203,19.75821967,146.19,146.13,1.2769]
[1727869579410,5.34,146.18,146.13,1.2769]
[1727869579609,5.34,146.18,146.1,1.3802]
[1727869579902,21.76,146.18,146.1,1.3802]
[1727869580294,3.4215,146.16,146.1,1.3802]
[1727869581105,21.76,146.18,146.1,1.3802]
[1727869581511,16.42,146.16,146.11,3.4224]
[1727869582011,3.4218,146.15,146.12,3.4223]
[1727869582208,3.4218,146.15,146.1,1.3802]
[1727869583403,3.4217,146.15,146.11,3.4224]
[1727869584104,16.42,146.16,146.1,4.8029]
[1727869584105,3.4223,146.13,146.1,4.8029]
[1727869584411,5.34,146.14,146.1,1.3802]
[1727869584806,3.4222,146.13,146.1,4.8029]
[1727869585503,5.34,146.14,146.1,1.3802]
[1727869585811,21.76,146.14,146.09,0.12502]
[1727869586012,16.42,146.12,146.09,0.12502]
[1727869586410,3.4228,146.1,146.09,0.12502]
[1727869586908,19.8428,146.1,146.09,0.12502]
[1727869587304,25.1828,146.1,146.09,0.12502]
[1727869589311,3.4236,146.07,146.04,4.8046]
[1727869589515,3.4236,146.07,146.04,1.3806]
[1727869589710,3.4236,146.07,146.04,4.8046]
[1727869589911,3.4237,146.06,146.04,3.424]
[1727869591008,3.4237,146.06,146.03,3.54932]
[1727869591208,3.4238,146.06,146.03,3.54932]
[1727869591412,16.42,146.08,146.03,0.12502]
[1727869592514,16.42,146.06,146.03,0.12502]
[1727869592814,3.4242,146.04,146.03,0.12502]
[1727869593612,3.4242,146.04,145.99,2.656]
[1727869593613,3.4248,146.02,145.99,3.4252]
[1727869594111,3.4249,146.02,145.98,3.4254]
[1727869594312,5.34,146.01,145.97,0.12502]
[1727869595813,16.42,146.0,145.97,0.12502]
[1727869596608,19.8452,146.0,145.97,3.55062]
[1727869597208,16.42,146.0,145.97,0.12502]
[1727869599418,16.42,145.98,145.97,0.12502]
[1727869601620,21.76,145.98,145.97,0.12502]
[1727869603321,16.42,145.98,145.97,0.12502]
[1727869603522,21.76,145.98,145.97,0.12502]
[1727869604021,16.42,145.98,145.97,0.12502]
[1727869604316,2.5515,146.02,145.97,0.12502]
[1727869604317,16.42,146.02,145.97,0.12502]
[1727869604623,5.34,146.01,145.97,0.12502]
[1727869604810,16.42,146.0,145.97,0.12502]
[1727869605014,16.42,145.98,145.97,0.12502]
[1727869608809,16.42,146.0,145.97,0.12502]
[1727869609014,21.76,146.0,145.97,0.12502]
[1727869609914,5.34,146.0,145.97,0.12502]
[1727869610114,16.42,145.99,145.97,0.12502]
[1727869610721,21.76,145.99,145.97,0.12502]
[1727869612210,16.42,145.99,145.97,0.12502]
[1727869612414,5.34,145.99,145.97,0.12502]
[1727869614617,21.76,146.01,145.97,0.12502]
[1727869615516,5.34,146.01,145.97,0.12502]
[1727869621422,16.42,146.03,145.97,0.12502]
[1727869621628,10.53,146.0,145.97,0.12502]
[1727869623229,10.53,146.0,145.97,1.48902]
[1727869624835,1.0229,146.1,145.98,10.53]
[1727869625038,1.0229,146.1,146.01,10.53]
[1727869625333,10.53,146.06,146.01,10.53]
[1727869625529,16.44,146.06,145.99,5.34]
[1727869626038,16.44,146.06,145.98,2.7588]
[1727869627238,3.424,146.05,146.02,3.4245]
[1727869627437,5.34,146.08,145.99,16.44]
[1727869627438,16.44,146.08,145.99,16.44]
[1727869627632,5.34,146.07,145.99,16.44]
[1727869628444,5.34,146.08,146.01,16.44]
[1727869628738,0.12502,146.09,146.03,16.44]
[1727869629037,0.12502,146.09,146.04,3.98]
[1727869629833,0.12502,146.09,146.06,3.4236]
[1727869630034,16.44,146.08,146.04,3.98]
[1727869630338,16.44,146.08,146.04,2.7057]
[1727869630535,16.44,146.08,146.06,3.4237]
[1727869631138,0.12502,146.09,146.08,3.4232]
[1727869632546,0.12502,146.09,146.05,1.3073]
[1727869632547,5.34,146.14,146.06,21.78]
[1727869633244,5.34,146.14,146.09,3.4228]
[1727869633442,19.8622,146.13,146.09,3.4228]
[1727869636138,19.8622,146.13,146.1,3.4228]
[1727869636641,16.44,146.13,146.06,5.34]
[1727869636847,5.34,146.14,146.06,21.78]
[1727869637144,0.12502,146.15,146.1,16.44]
[1727869637350,0.12502,146.15,146.14,3.4218]
[1727869637646,0.12502,146.15,146.11,2.6882]
[1727869638047,0.12502,146.15,146.11,6.19153588]
[1727869638242,21.76,146.19,146.11,6.19153588]
[1727869638448,16.44,146.19,146.11,6.19153588]
[1727869639150,16.44,146.19,146.16,3.4213]
[1727869640243,19.98542,146.21,146.12,16.44]
[1727869640436,19.98542,146.21,146.14,16.44]
[1727869640437,0.12502,146.21,146.14,16.44]
[1727869640642,0.12502,146.21,146.14,21.76]
[1727869641345,3.4204,146.2,146.14,5.32]
[1727869641949,3.4204,146.2,146.16,3.4212]
[1727869642449,3.4204,146.2,146.12,16.44]
[1727869642747,16.44,146.17,146.11,2.6882]
[1727869642953,21.76,146.17,146.11,2.6882]
[1727869643155,3.422,146.14,146.11,2.6882]
[1727869643354,21.76,146.17,146.09,0.12502]
[1727869643648,21.76,146.17,146.1,3.4227]
[1727869643649,3.422,146.14,146.1,3.4227]
[1727869643950,16.44,146.15,146.1,3.4227]
[1727869644150,3.422,146.14,146.1,3.4227]
[1727869644345,3.422,146.14,146.09,0.12502]
[1727869644346,16.44,146.15,146.09,3.54792]
[1727869644744,3.4222,146.13,146.09,3.54792]
[1727869644947,16.44,146.15,146.09,0.12502]
[1727869645153,16.44,146.13,146.09,0.12502]
[1727869645449,3.4225,146.12,146.09,0.12502]
[1727869646357,3.4225,146.12,146.09,3.54802]
[1727869650548,3.4225,146.12,146.09,0.12502]
[1727869651253,3.4228,146.1,146.09,0.12502]
[1727869651660,16.44,146.11,146.09,0.12502]
[1727869652165,21.76,146.13,146.09,0.12502]
[1727869652865,3.4224,146.12,146.09,0.12502]
[1727869653663,3.4226,146.11,146.09,0.12502]
[1727869656358,21.76,146.13,146.09,0.12502]
[1727869656553,3.4224,146.12,146.09,3.54792]
[1727869656761,21.76,146.13,146.09,0.12502]
[1727869656966,3.4224,146.12,146.09,0.12502]
[1727869657160,16.44,146.11,146.09,0.12502]
[1727869657470,16.44,146.11,146.03,2.68992]
[1727869657657,3.4234,146.08,146.03,2.68992]
[1727869658257,3.4234,146.08,146.05,3.4237]
[1727869658661,3.4234,146.08,146.03,2.68992]
[1727869658860,3.4234,146.08,146.05,3.4239]
[1727869659061,3.4237,146.07,146.03,2.68992]
[1727869659256,21.76,146.09,146.03,2.68992]
[1727869659468,21.76,146.09,146.03,6.11422]
[1727869659668,21.76,146.09,146.03,2.68992]
[1727869659863,3.4237,146.07,146.03,2.68992]
[1727869660367,3.4237,146.07,146.04,3.424]
[1727869661970,21.76,146.09,146.03,0.12502]
[1727869662174,3.4238,146.06,146.03,3.54932]
[1727869662665,3.424,146.05,146.03,0.12502]
[1727869663170,3.4242,146.04,146.03,0.12502]
[1727869668266,16.44,146.05,146.03,0.12502]
[1727869668575,5.32,146.06,146.04,3.424]
[1727869668870,5.32,146.06,146.03,0.12502]
[1727869669267,8.7438,146.06,146.03,3.54922]
[1727869669666,5.32,146.07,146.03,0.12502]
[1727869669864,5.32,146.07,146.06,3.4236]
[1727869671171,5.32,146.07,146.05,3.4239]
[1727869671766,3.4238,146.06,146.03,3.54932]
[1727869672062,25.18074601,146.07,146.03,0.12502]
[1727869672266,3.4242,146.04,146.03,0.12502]
[1727869678279,21.76,146.07,146.03,0.12502]
[1727869678777,5.32,146.07,146.05,3.4238]
[1727869678971,5.32,146.08,146.03,0.12502]
[1727869679776,3.4236,146.07,146.04,3.424]
[1727869680169,5.32,146.08,146.03,0.12502]
[1727869680971,3.4235,146.07,146.04,3.4241]
[1727869681371,16.44,146.07,146.03,0.12502]
[1727869681880,5.32,146.08,146.03,0.12502]
[1727869682076,21.76,146.11,146.03,0.12502]
[1727869682383,16.44,146.11,146.03,16.56502]
[1727869682783,16.44,146.11,146.08,3.4231]
[1727869683475,19.8627,146.11,146.08,3.4231]
[1727869683875,16.44,146.11,146.05,2.7222]
[1727869684281,16.44,146.13,146.05,19.1622]
[1727869684579,8.86662,146.15,146.07,16.44]
[1727869685084,0.12502,146.15,146.13,3.4219]
[1727869685287,0.12502,146.15,146.1,1.2576]
[1727869686182,0.12502,146.15,146.12,3.4222]
[1727869687686,3.54662,146.15,146.12,3.4222]
[1727869688079,16.44,146.14,146.1,1.2576]
[1727869688281,16.44,146.12,146.05,9.3267]
[1727869688580,3.4226,146.11,146.07,3.4233]
[1727869688784,16.44,146.12,146.07,3.4233]
[1727869689175,16.44,146.11,146.05,4.0067]
[1727869689381,16.44,146.11,146.05,2.7222]
[1727869689682,3.4235,146.07,146.04,3.4241]
[1727869690278,16.44,146.08,146.03,3.54942]
[1727869690488,3.4238,146.06,146.03,3.54942]
[1727869690981,16.44,146.08,146.03,3.54942]
[1727869691180,3.4236,146.07,146.03,3.54942]
[1727869691382,3.4236,146.07,146.04,3.4241]
[1727869691579,8.743,146.09,146.03,0.12502]
[1727869691781,16.44,146.1,146.03,0.12502]
[1727869691981,21.76,146.1,146.03,0.12502]
[1727869692680,3.4226,146.11,146.03,16.56502]
[1727869693285,3.423,146.1,146.06,3.4236]
[1727869693584,21.76,146.12,146.03,16.56502]
[1727869693780,3.423,146.1,146.06,3.4236]
[1727869693983,21.76,146.12,146.06,3.4236]
[1727869694387,3.4229,146.1,146.06,3.4236]
[1727869696291,21.76,146.12,146.06,3.4236]
[1727869696789,3.4229,146.1,146.06,3.4236]
[1727869698585,21.76,146.12,146.06,3.4236]
[1727869698787,3.4232,146.09,146.06,3.4236]
[1727869701084,3.4235,146.07,146.04,3.4241]
[1727869701382,16.44,146.1,146.03,0.12502]
[1727869702088,3.4231,146.09,146.06,3.4237]
[1727869702486,16.44,146.1,146.03,0.12502]
[1727869702789,3.4232,146.08,146.05,3.4238]
[1727869702991,16.44,146.1,146.03,0.12502]
[1727869703192,3.4232,146.09,146.05,3.4239]
[1727869703789,3.4231,146.09,146.05,3.4239]
[1727869705893,16.44,146.1,146.05,3.4239]
[1727869706095,3.4233,146.08,146.05,3.4239]
[1727869706884,16.44,146.1,146.03,0.12502]
[1727869707091,3.4232,146.09,146.06,3.4237]
[1727869708090,3.4232,146.08,146.05,3.4238]
[1727869708291,16.44,146.1,146.03,0.12502]
[1727869708493,3.4233,146.08,146.04,3.4242]
[1727869708696,16.44,146.1,146.03,0.12502]
[1727869709299,3.4233,146.08,146.05,3.4239]
[1727869709697,16.44,146.1,146.03,0.12502]
[1727869709896,3.4231,146.09,146.05,3.4239]
[1727869710398,3.4231,146.09,146.03,0.12502]
[1727869710399,3.4231,146.09,146.06,3.4236]
[1727869710698,16.44,146.13,146.03,16.56502]
[1727869710897,16.44,146.13,146.09,3.423]
[1727869711109,21.76,146.13,146.09,3.423]
[1727869711405,3.4224,146.12,146.09,3.423]
[1727869711795,8.7422,146.13,146.1,3.4227]
[1727869712891,8.742,146.14,146.11,3.4223]
[1727869713099,5.32,146.14,146.07,17.8097]
[1727869713404,3.54682,146.15,146.12,3.4222]
[1727869713996,0.12502,146.15,146.09,28.81508391]
[1727869714191,0.12502,146.15,146.11,16.44]
[1727869714399,5.44502,146.21,146.13,16.44]
[1727869714601,5.44502,146.21,146.13,28.81283268]
[1727869714904,5.44502,146.21,146.13,21.76]
[1727869715501,5.44502,146.21,146.14,7.04889454]
[1727869715900,0.12502,146.21,146.17,16.44]
[1727869716102,0.12502,146.21,146.2,3.4204]
[1727869716310,0.12502,146.21,146.18,2.5682]
[1727869716703,0.12502,146.21,146.19,3.4205]
[1727869716905,0.12502,146.21,146.18,2.5682]
[1727869717401,0.12502,146.21,146.19,3.4207]
[1727869720404,0.12502,146.21,146.18,5.989]
[1727869720611,0.12502,146.21,146.18,2.5682]
[1727869720809,0.12502,146.21,146.18,1.2837]
[1727869721013,0.12502,146.21,146.14,2.6039]
[1727869721217,0.12502,146.21,146.14,3.9704]
[1727869721410,3.4205,146.2,146.16,3.4212]
[1727869721616,3.4205,146.2,146.15,5.32]
[1727869722017,3.4205,146.2,146.16,3.4213]
[1727869724428,3.4206,146.2,146.15,5.32]
[1727869724625,0.12502,146.21,146.15,5.32]
[1727869725125,3.4207,146.19,146.15,5.32]
[1727869725321,0.12502,146.21,146.15,5.32]
[1727869725822,0.12502,146.21,146.15,3.4215]
[1727869727231,3.4209,146.18,146.15,3.4215]
[1727869727725,0.12502,146.21,146.15,3.4215]
[1727869727925,0.12502,146.21,146.14,9.2904]
[1727869728134,3.4205,146.2,146.14,9.2904]
[1727869728525,0.12502,146.21,146.14,9.2904]
[1727869728727,3.4207,146.19,146.16,3.4212]
[1727869729533,0.12502,146.21,146.14,9.2904]
[1727869729534,3.4211,146.18,146.14,7.3921]
[1727869729725,16.44,146.2,146.14,2.6626]
[1727869730831,3.4205,146.2,146.17,3.4211]
[1727869731032,0.12502,146.21,146.14,2.6626]
[1727869731534,0.12502,146.21,146.15,3.4215]
[1727869731535,3.4207,146.19,146.15,3.4215]
[1727869731928,0.12502,146.21,146.15,3.4215]
[1727869732435,3.421,146.18,146.15,3.4215]
[1727869733632,3.54542,146.21,146.14,2.6626]
[1727869733831,3.54542,146.21,146.15,16.44]
[1727869734034,0.12502,146.21,146.15,16.44]
[1727869734238,0.12502,146.21,146.19,16.44]
[1727869734738,0.12502,146.21,146.17,16.44]
[1727869735834,0.12502,146.21,146.18,3.4207]
[1727869738035,3.54542,146.21,146.17,16.44]
[1727869738234,3.54542,146.21,146.16,6.6108]
[1727869738739,3.54542,146.21,146.17,3.421]
[1727869739644,3.54542,146.21,146.18,13.9309]
[1727869741546,0.12502,146.21,146.2,3.4204]
[1727869741739,15.83,146.26,146.2,10.51]
[1727869741940,15.83,146.26,146.22,10.51]
[1727869742335,3.4193,146.25,146.22,10.51]
[1727869742842,0.12502,146.27,146.23,10.51]
[1727869743043,0.12502,146.27,146.24,10.51]
[1727869743448,0.12502,146.27,146.25,3.4191]
[1727869743635,0.12502,146.27,146.26,10.51]
[1727869744041,0.12502,146.27,146.24,15.83]
[1727869744241,0.12502,146.27,146.25,10.51]
[1727869744936,0.12502,146.27,146.26,3.419]
[1727869746146,0.12502,146.27,146.24,5.32]
[1727869746535,0.12502,146.27,146.23,16.41]
[1727869746740,0.12502,146.27,146.22,3.4197]
[1727869747054,0.12502,146.27,146.21,24.4659]
[1727869747242,0.12502,146.27,146.21,19.1459]
[1727869747544,0.12502,146.27,146.21,24.4659]
[1727869748443,3.54382,146.27,146.24,3.4195]
[1727869748640,3.54382,146.27,146.21,24.4659]
[1727869749051,0.12502,146.27,146.21,24.4659]
[1727869749245,0.12502,146.27,146.22,3.4199]
[1727869749640,3.4194,146.25,146.21,24.4659]
[1727869750647,3.4194,146.25,146.22,3.4198]
[1727869751744,3.4194,146.25,146.21,24.4659]
[1727869751745,0.12502,146.27,146.21,24.4659]
[1727869752450,3.54392,146.27,146.22,3.4198]
[1727869752643,3.54392,146.27,146.21,24.4659]
[1727869752849,0.12502,146.27,146.21,24.4659]
[1727869753245,3.54402,146.27,146.23,3.4196]
[1727869753938,3.4192,146.26,146.23,3.4196]
[1727869755449,0.12502,146.27,146.23,16.41]
[1727869756052,0.12502,146.27,146.26,3.419]
[1727869757049,0.12502,146.27,146.25,3.4191]
[1727869757949,0.12502,146.27,146.22,16.41]
[1727869758140,0.12502,146.27,146.23,3.4196]
[1727869758344,0.12502,146.27,146.22,16.41]
[1727869759347,3.54392,146.27,146.24,3.4194]
[1727869761150,3.4192,146.26,146.23,8.7397]
[1727869761554,3.54392,146.27,146.24,3.4193]
[1727869762357,3.54392,146.27,146.25,3.4192]
[1727869762358,0.12502,146.27,146.25,3.4192]
[1727869763553,0.12502,146.27,146.26,3.419]
[1727869766057,0.12502,146.33,146.26,16.41]
[1727869766357,0.12502,146.33,146.27,7.9955]
[1727869766863,0.12502,146.33,146.27,11.37303849]
[1727869767166,0.12502,146.33,146.28,16.41]
[1727869768055,0.12502,146.33,146.3,3.4179]
[1727869768256,0.12502,146.33,146.28,16.41]
[1727869768662,3.54252,146.33,146.29,3.4182]
[1727869769761,3.4179,146.31,146.29,10.51]
[1727869770066,3.54252,146.33,146.29,13.9282]
[1727869770455,0.12502,146.33,146.29,13.9282]
[1727869771057,10.63502,146.33,146.27,2.6755]
[1727869771358,10.63502,146.33,146.28,10.51]
[1727869771662,10.51,146.32,146.27,2.6755]
[1727869771861,10.51,146.31,146.27,2.6755]
[1727869772163,10.51,146.31,146.27,1.3706]
[1727869772362,3.4185,146.29,146.26,10.51]
[1727869773658,3.4185,146.29,146.25,4.7721]
[1727869773963,3.4182,146.3,146.26,3.4189]
[1727869774264,21.82502,146.33,146.25,1.3529]
[1727869774466,21.82502,146.33,146.26,3.4189]
[1727869774769,21.82502,146.33,146.26,16.4]
[1727869774770,5.42502,146.33,146.26,16.4]
[1727869774966,5.42502,146.33,146.29,3.4183]
[1727869775268,0.12502,146.33,146.28,21.7]
[1727869775659,3.54242,146.33,146.3,3.418]
[1727869776757,3.54242,146.33,146.28,21.7]
[1727869776758,0.12502,146.33,146.28,21.7]
[1727869776965,0.12502,146.33,146.3,3.4179]
[1727869777464,3.4177,146.32,146.29,1.3084]
[1727869777663,0.12502,146.33,146.29,1.3084]
[1727869778061,3.54252,146.33,146.3,3.418]
[1727869779662,0.12502,146.33,146.29,17.7084]
[1727869779963,0.12502,146.33,146.3,1.3267]
[1727869780557,3.4176,146.32,146.3,1.3267]
[1727869780758,3.4176,146.32,146.29,1.3084]
[1727869781369,0.12502,146.33,146.26,17.7267]
[1727869781562,3.4181,146.3,146.27,5.3]
[1727869781764,0.12502,146.33,146.28,3.4185]
[1727869782160,0.12502,146.33,146.27,5.3]
[1727869782568,3.4182,146.3,146.27,5.3]
[1727869783072,3.4182,146.3,146.27,8.7188]
[1727869783573,3.4182,146.3,146.26,17.7267]
[1727869783574,3.4184,146.29,146.26,21.1456]
[1727869784163,3.4187,146.28,146.26,1.3267]
[1727869784361,3.4258381,146.31,146.23,1.2664]
[1727869784562,16.4,146.3,146.21,1.38412]
[1727869784862,3.38687317,146.29,146.21,1.38412]
[1727869785068,21.7,146.28,146.21,1.38412]
[1727869785369,3.4196,146.24,146.21,1.38412]
[1727869786065,3.4199,146.23,146.21,0.12502]
[1727869788170,21.7,146.28,146.21,0.12502]
[1727869789467,3.42,146.22,146.21,0.12502]
[1727869791164,21.7,146.28,146.21,0.12502]
[1727869791569,3.4198,146.23,146.21,0.12502]
[1727869792276,3.42,146.22,146.21,0.12502]
[1727869793476,3.4199,146.23,146.21,0.12502]
[1727869794371,5.3,146.24,146.21,0.12502]
[1727869794571,3.42,146.22,146.21,0.12502]
[1727869800390,3.4198,146.23,146.21,0.12502]
[1727869800691,5.3,146.24,146.21,0.12502]
[1727869801089,3.42,146.22,146.21,0.12502]
[1727869801284,13.93,146.22,146.21,0.12502]
[1727869804196,3.4214,146.16,146.15,0.12502]
[1727869805093,13.9314,146.16,146.15,0.12502]
[1727869805995,10.51,146.16,146.09,0.12502]
[1727869806197,1.44162,146.21,146.09,3.54782]
[1727869806198,10.51,146.13,146.09,3.54782]
[1727869806496,10.51,146.13,146.09,14.05782]
[1727869806691,3.4219,146.14,146.12,3.4223]
[1727869806889,15.81,146.17,146.13,10.51]
[1727869807289,3.4218,146.14,146.13,10.51]
[1727869807494,3.4218,146.14,146.11,3.4224]
[1727869808493,3.4222,146.13,146.1,3.4227]
[1727869808685,21.74,146.17,146.09,0.12502]
[1727869810191,16.44,146.15,146.09,0.12502]
[1727869810786,3.4227,146.11,146.09,0.12502]
[1727869810988,5.3,146.13,146.09,0.12502]
[1727869811290,3.4225,146.12,146.09,3.54802]
[1727869813399,16.44,146.16,146.09,0.12502]
[1727869813590,5.3,146.16,146.09,16.56502]
[1727869813789,5.3,146.16,146.1,1.3059]
[1727869814495,21.74,146.16,146.1,1.3059]
[1727869814796,16.44,146.14,146.09,0.12502]
[1727869815591,3.4228,146.1,146.09,0.12502]
[1727869818100,19.8628,146.1,146.09,0.12502]
[1727869818702,3.4236,146.07,146.03,0.12502]
[1727869819001,5.3,146.08,146.03,3.54922]
[1727869819203,3.4238,146.06,146.03,0.12502]
[1727869819400,5.3,146.08,146.03,0.12502]